fUSD/lending_fUSD_20241222
["ID","MTS","AMOUNT","RATE_DAILY","PERIOD"]
[346303301,1734881443962,-500.0,0.00019178,2]
[346303302,1734881443972,-500.0,0.00019178,2]
[346303303,1734881443981,-380.85730258,0.00019178,2]
[346303305,1734881443991,-500.0,0.00019178,2]
[346303307,1734881444000,-500.0,0.00019178,2]
[346303309,1734881444009,-623.12,0.00019178,2]
[346303311,1734881444020,-500.0,0.00019178,2]
[346303313,1734881444029,-500.0,0.00019178,2]
[346303315,1734881444038,-500.0,0.00019178,2]
[346303317,1734881444048,-500.0,0.00019178,2]
[346303319,1734881444057,-500.0,0.00019178,2]
[346303321,1734881444067,-500.0,0.00019178,2]
[346303322,1734881444077,-500.0,0.00019178,2]
[346303323,1734881444086,-500.0,0.00019178,2]
[346303324,1734881444095,-500.0,0.00019178,2]
[346303327,1734881444242,-500.0,0.00019178,2]
[346303328,1734881444253,-989.27,0.00019178,2]
[346303329,1734881444264,-500.0,0.00019178,2]
[346303330,1734881444274,-500.0,0.00019178,2]
[346303331,1734881444283,-500.0,0.00019178,2]
[346303332,1734881444293,-500.0,0.00019178,2]
[346303333,1734881444304,-500.0,0.00019178,2]
[346303334,1734881444314,-500.0,0.00019178,2]
[346303335,1734881444324,-500.0,0.00019178,2]
[346303336,1734881444334,-500.0,0.00019178,2]
[346303337,1734881444345,-500.0,0.00019178,2]
[346303338,1734881444356,-400.12926244,0.00019178,2]
[346303339,1734881444366,-313.88301303,0.00019178,2]
[346303340,1734881444377,-500.0,0.00019178,2]
[346303341,1734881444386,-500.0,0.00019178,2]
[346303342,1734881444397,-555.74,0.00019178,2]
[346303343,1734881444408,-500.0,0.00019178,2]
[346303344,1734881444418,-500.0,0.00019178,2]
[346303345,1734881444429,-500.0,0.00019178,2]
[346303346,1734881444438,-500.0,0.00019178,2]
[346303348,1734881444448,-500.0,0.00019178,2]
[346303350,1734881444459,-500.0,0.00019178,2]
[346303352,1734881444468,-828.13,0.00019178,2]
[346303354,1734881444478,-500.0,0.00019178,2]
[346303355,1734881444488,-500.0,0.00019178,2]
[346303356,1734881444498,-500.0,0.00019178,2]
[346303357,1734881444507,-500.0,0.00019178,2]
[346303358,1734881444517,-500.0,0.00019178,2]
[346303359,1734881444526,-500.0,0.00019178,2]
[346303360,1734881444536,-822.65,0.00019178,2]
[346303361,1734881444546,-500.0,0.00019178,2]
[346303362,1734881444555,-500.0,0.00019178,2]
[346303363,1734881444565,-158.705042,0.00019178,2]
[346303364,1734881444574,-500.0,0.00019178,2]
[346303365,1734881444583,-500.0,0.00019178,2]
[346303366,1734881444593,-500.0,0.00019178,2]
[346303367,1734881444602,-291.218995,0.00019178,2]
[346303368,1734881444611,-500.0,0.00019178,2]
[346303369,1734881444621,-616.63,0.00019178,2]
[346303370,1734881444630,-509.01,0.00019178,2]
[346303371,1734881444640,-500.0,0.00019178,2]
[346303372,1734881444649,-759.28,0.00019178,2]
[346303373,1734881444658,-500.0,0.00019178,2]
[346303374,1734881444668,-10411.86,0.00019178,2]
[346303375,1734881444677,-500.0,0.00019178,2]
[346303376,1734881444687,-29542.85,0.00019178,2]
[346303377,1734881444697,-500.0,0.00019178,2]
[346303378,1734881444706,-500.0,0.00019178,2]
[346303379,1734881444716,-500.0,0.00019178,2]
[346303380,1734881444727,-1582.31,0.00019178,2]
[346303381,1734881444737,-500.0,0.00019178,2]
[346303382,1734881444747,-500.0,0.00019178,2]
[346303383,1734881444758,-500.0,0.00019178,2]
[346303384,1734881444772,-500.0,0.00019178,2]
[346303385,1734881444782,-500.0,0.00019178,2]
[346303387,1734881444791,-500.0560261,0.00019178,2]
[346303388,1734881444801,-500.0,0.00019178,2]
[346303390,1734881444811,-246.21251081,0.00019178,2]
[346303392,1734881444820,-500.0,0.00019178,2]
[346303393,1734881444829,-490.46748919,0.00019178,2]
[346303394,1734881444839,-500.0,0.00019178,2]
[346303395,1734881444849,-500.0,0.00019178,2]
[346303396,1734881444859,-500.0,0.00019178,2]
[346303397,1734881444868,-500.0,0.00019178,2]
[346303398,1734881444881,-891.78,0.00019178,2]
[346303399,1734881444896,-500.0,0.00019178,2]
[346303400,1734881444905,-500.0,0.00019178,2]
[346303401,1734881444914,-500.0,0.00019178,2]
[346303402,1734881444923,-500.0,0.00019178,2]
[346303403,1734881444932,-500.0,0.00019178,2]
[346303404,1734881444943,-3581.2,0.00019178,2]
[346303405,1734881444953,-1107.95,0.00019178,2]
[346303406,1734881444962,-520.85,0.00019178,2]
[346303407,1734881444971,-162.56605247,0.00019178,2]
[346303408,1734881444980,-1017.92,0.00019178,2]
[346303409,1734881444989,-500.0,0.00019178,2]
[346303410,1734881444999,-618.57,0.00019178,2]
[346303411,1734881445008,-500.0,0.00019178,2]
[346303412,1734881445016,-500.0,0.00019178,2]
[346303413,1734881445026,-500.0,0.00019178,2]
[346303414,1734881445036,-500.0,0.00019178,2]
[346303415,1734881445045,-500.0,0.00019178,2]
[346303416,1734881445055,-597.67,0.00019178,2]
[346303417,1734881445064,-600.56,0.00019178,2]
[346303418,1734881445073,-2153.46,0.00019178,2]
[346303419,1734881445082,-2582.39,0.00019178,2]
[346303420,1734881445092,-500.0,0.00019178,2]
[346303421,1734881445101,-500.0,0.00019178,2]
[346303422,1734881445110,-797.39,0.00019178,2]
[346303423,1734881445119,-500.0,0.00019178,2]
[346303424,1734881445128,-500.0,0.00019178,2]
[346303425,1734881445137,-500.0,0.00019178,2]
[346303426,1734881445146,-500.0,0.00019178,2]
[346303427,1734881445156,-500.0,0.00019178,2]
[346303428,1734881445164,-760.95,0.00019178,2]
[346303429,1734881445174,-500.0,0.00019178,2]
[346303430,1734881445182,-2950.68,0.00019178,2]
[346303431,1734881445193,-500.0,0.00019178,2]
[346303432,1734881445202,-500.0,0.00019178,2]
[346303433,1734881445211,-500.0,0.00019178,2]
[346303434,1734881445220,-500.34655626,0.00019178,2]
[346303435,1734881445229,-500.0,0.00019178,2]
[346303436,1734881445238,-6006.68,0.00019178,2]
[346303437,1734881445247,-1950.81,0.00019178,2]
[346303438,1734881445256,-500.0,0.00019178,2]
[346303439,1734881445266,-500.0,0.00019178,2]
[346303440,1734881445275,-928.99,0.00019178,2]
[346303441,1734881445284,-500.0,0.00019178,2]
[346303442,1734881445304,-500.0,0.00019178,2]
[346303443,1734881445317,-566.55,0.00019178,2]
[346303444,1734881445326,-500.0,0.00019178,2]
[346303445,1734881445335,-500.0,0.00019178,2]
[346303446,1734881445344,-866.58,0.00019178,2]
[346303447,1734881445353,-500.0,0.00019178,2]
[346303448,1734881445362,-500.0,0.00019178,2]
[346303449,1734881445371,-268.86697688,0.00019178,2]
[346303450,1734881445380,-777.05,0.00019178,2]
[346303451,1734881445389,-500.0,0.00019178,2]
[346303452,1734881445399,-500.0,0.00019178,2]
[346303453,1734881445408,-500.0,0.00019178,2]
[346303454,1734881445417,-36264.67,0.00019178,2]
[346303455,1734881445426,-615.29,0.00019178,2]
[346303456,1734881445435,-213.1,0.00019178,2]
[346303457,1734881445445,-642.56,0.00019178,2]
[346303458,1734881445455,-500.0,0.00019178,2]
[346303459,1734881445464,-500.0,0.00019178,2]
[346303460,1734881445473,-586.72,0.00019178,2]
[346303461,1734881445482,-500.0,0.00019178,2]
[346303462,1734881445493,-1347.11,0.00019178,2]
[346303463,1734881445502,-5695.88,0.00019178,2]
[346303464,1734881445511,-500.0,0.00019178,2]
[346303465,1734881445521,-500.0,0.00019178,2]
[346303466,1734881445531,-500.0,0.00019178,2]
[346303467,1734881445540,-500.0,0.00019178,2]
[346303468,1734881445550,-342.07715258,0.00019178,2]
[346303469,1734881445560,-500.0,0.00019178,2]
[346303470,1734881445569,-50596.19,0.00019178,2]
[346303471,1734881445578,-500.0,0.00019178,2]
[346303472,1734881445588,-500.0,0.00019178,2]
[346303473,1734881445597,-8820.76,0.00019178,2]
[346303474,1734881445607,-222.67871932,0.00019178,2]
[346303475,1734881445617,-500.0,0.00019178,2]
[346303476,1734881445627,-500.0,0.00019178,2]
[346303477,1734881445636,-500.0,0.00019178,2]
[346303478,1734881445646,-433.26442326,0.00019178,2]
[346303479,1734881445655,-191.59,0.00019178,2]
[346303480,1734881445665,-500.0,0.00019178,2]
[346303481,1734881445675,-1920.31,0.00019178,2]
[346303482,1734881445685,-1920.31,0.00019178,2]
[346303483,1734881445695,-500.0,0.00019178,2]
[346303484,1734881445705,-500.0,0.00019178,2]
[346303485,1734881445714,-682.03,0.00019178,2]
[346303486,1734881445724,-515.93,0.00019178,2]
[346303487,1734881445733,-500.0,0.00019178,2]
[346303488,1734881445742,-1437.44,0.00019178,2]
[346303489,1734881445751,-500.0,0.00019178,2]
[346303490,1734881445761,-500.0,0.00019178,2]
[346303491,1734881445775,-945.81,0.00019178,2]
[346303492,1734881445784,-646.11,0.00019178,2]
[346303493,1734881445794,-500.0,0.00019178,2]
[346303494,1734881445803,-829.13,0.00019178,2]
[346303495,1734881445813,-603.72,0.00019178,2]
[346303496,1734881445823,-4345.75,0.00019178,2]
[346303497,1734881445831,-663.72,0.00019178,2]
[346303498,1734881445841,-6113.02,0.00019178,2]
[346303499,1734881445851,-1355.16,0.00019178,2]
[346303500,1734881445860,-9131.21,0.00019178,2]
[346303501,1734881445870,-500.0,0.00019178,2]
[346303502,1734881445879,-760.11,0.00019178,2]
[346303503,1734881445888,-752.19,0.00019178,2]
[346303504,1734881445898,-500.0,0.00019178,2]
[346303505,1734881445908,-500.0,0.00019178,2]
[346303506,1734881445918,-6436.96,0.00019178,2]
[346303507,1734881445927,-500.0,0.00019178,2]
[346303508,1734881445936,-829.19,0.00019178,2]
[346303509,1734881445945,-683.95,0.00019178,2]
[346303510,1734881445954,-500.0,0.00019178,2]
[346303511,1734881445964,-703.93,0.00019178,2]
[346303512,1734881445973,-500.0,0.00019178,2]
[346303513,1734881445982,-500.0,0.00019178,2]
[346303514,1734881445991,-82240.9,0.00019178,2]
[346303515,1734881446000,-929.49,0.00019178,2]
[346303516,1734881446010,-1082.63,0.00019178,2]
[346303517,1734881446019,-491.86438386,0.00019178,2]
[346303518,1734881446028,-500.0,0.00019178,2]
[346303519,1734881446037,-3271.98,0.00019178,2]
[346303520,1734881446046,-14649.77,0.00019178,2]
[346303521,1734881446056,-500.0,0.00019178,2]
[346303522,1734881446065,-500.0,0.00019178,2]
[346303523,1734881446074,-500.0,0.00019178,2]
[346303524,1734881446083,-3091.65,0.00019178,2]
[346303525,1734881446092,-23276.36,0.00019178,2]
[346303526,1734881446101,-1401.52,0.00019178,2]
[346303527,1734881446110,-8975.57,0.00019178,2]
[346303528,1734881446119,-953.7,0.00019178,2]
[346303529,1734881446128,-500.0,0.00019178,2]
[346303530,1734881446137,-500.0,0.00019178,2]
[346303531,1734881446147,-2934.22,0.00019178,2]
[346303532,1734881446156,-1629.65,0.00019178,2]
[346303534,1734881446165,-21960.92,0.00019178,2]
[346303536,1734881446175,-500.0,0.00019178,2]
[346303538,1734881446184,-1075.74,0.00019178,2]
[346303539,1734881446194,-581.11,0.00019178,2]
[346303540,1734881446203,-500.0,0.00019178,2]
[346303541,1734881446212,-240.62,0.00019178,2]
[346303542,1734881446222,-754.14,0.00019178,2]
[346303543,1734881446231,-2484.39,0.00019178,2]
[346303544,1734881446240,-500.0,0.00019178,2]
[346303545,1734881446250,-5488.75,0.00019178,2]
[346303546,1734881446259,-500.0,0.00019178,2]
[346303547,1734881446269,-701.23,0.00019178,2]
[346303548,1734881446279,-1647.78,0.00019178,2]
[346303549,1734881446288,-500.0,0.00019178,2]
[346303550,1734881446297,-7971.0,0.00019178,2]
[346303551,1734881446307,-632.65,0.00019178,2]
[346303552,1734881446316,-200.31553378,0.00019178,2]
[346303553,1734881446325,-500.0,0.00019178,2]
[346303554,1734881446334,-326.86554207,0.00019178,2]
[346303555,1734881446343,-593.34,0.00019178,2]
[346303556,1734881446354,-500.0,0.00019178,2]
[346303557,1734881446363,-502.50597646,0.00019178,2]
[346303558,1734881446372,-1334.97,0.00019178,2]
[346303559,1734881446381,-500.0,0.00019178,2]
[346303560,1734881446390,-2503.31,0.00019178,2]
[346303561,1734881446400,-1493.49,0.00019178,2]
[346303562,1734881446409,-500.0,0.00019178,2]
[346303563,1734881446418,-2016.09,0.00019178,2]
[346303564,1734881446427,-500.0,0.00019178,2]
[346303565,1734881446436,-801.38,0.00019178,2]
[346303566,1734881446446,-500.0,0.00019178,2]
[346303567,1734881446458,-500.0,0.00019178,2]
[346303568,1734881446467,-8019.92,0.00019178,2]
[346303569,1734881446477,-6945.02,0.00019178,2]
[346303570,1734881446486,-500.0,0.00019178,2]
[346303571,1734881446496,-4387.5,0.00019178,2]
[346303572,1734881446505,-623.26571822,0.00019178,2]
[346303573,1734881446514,-500.0,0.00019178,2]
[346303574,1734881446523,-500.0,0.00019178,2]
[346303575,1734881446532,-500.0,0.00019178,2]
[346303576,1734881446542,-500.0,0.00019178,2]
[346303577,1734881446551,-500.0,0.00019178,2]
[346303578,1734881446560,-500.0,0.00019178,2]
[346303579,1734881446570,-500.0,0.00019178,2]
[346303580,1734881446579,-638.78,0.00019178,2]
[346303581,1734881446589,-500.0,0.00019178,2]
[346303582,1734881446598,-5309.39,0.00019178,2]
[346303583,1734881446608,-646.98,0.00019178,2]
[346303584,1734881446618,-778.03,0.00019178,2]
[346303585,1734881446627,-405.38908242,0.00019178,2]
[346303586,1734881446638,-3781.1,0.00019178,2]
[346303587,1734881446647,-500.0,0.00019178,2]
[346303588,1734881446656,-500.0,0.00019178,2]
[346303589,1734881446666,-500.0,0.00019178,2]
[346303590,1734881446675,-500.0,0.00019178,2]
[346303591,1734881446684,-500.0,0.00019178,2]
[346303592,1734881446696,-500.0,0.00019178,2]
[346303593,1734881446705,-1057.33,0.00019178,2]
[346303594,1734881446715,-2039.69,0.00019178,2]
[346303595,1734881446725,-842.54,0.00019178,2]
[346303596,1734881446734,-500.0,0.00019178,2]
[346303597,1734881446743,-28779.14,0.00019178,2]
[346303598,1734881446753,-1138.14,0.00019178,2]
[346303599,1734881446762,-500.0,0.00019178,2]
[346303601,1734881446910,-823.27,0.00019178,2]
[346303602,1734881446920,-512.40858898,0.00019178,2]
[346303603,1734881446930,-500.0,0.00019178,2]
[346303604,1734881446939,-2055.22,0.00019178,2]
[346303605,1734881446949,-500.0,0.00019178,2]
[346303606,1734881446958,-500.0,0.00019178,2]
[346303607,1734881446968,-734.62,0.00019178,2]
[346303608,1734881446977,-500.0,0.00019178,2]
[346303609,1734881446986,-288.838143,0.00019178,2]
[346303610,1734881446996,-500.0,0.00019178,2]
[346303611,1734881447005,-4351.28,0.00019178,2]
[346303612,1734881447015,-500.0,0.00019178,2]
[346303613,1734881447025,-500.0,0.00019178,2]
[346303614,1734881447035,-500.0,0.00019178,2]
[346303615,1734881447045,-500.0,0.00019178,2]
[346303616,1734881447054,-500.0,0.00019178,2]
[346303617,1734881447063,-500.0,0.00019178,2]
[346303618,1734881447072,-2995.87,0.00019178,2]
[346303619,1734881447081,-391.71796702,0.0001918,2]
[346303620,1734881447091,-391.71796702,0.0001918,2]
[346303621,1734881447100,-391.71796702,0.0001918,2]
[346303622,1734881447109,-391.71796702,0.0001918,2]
[346303623,1734881447118,-391.71796702,0.0001918,2]
[346303624,1734881447127,-391.71796702,0.0001918,2]
[346303625,1734881447136,-391.71796702,0.0001918,2]
[346303626,1734881447145,-391.71796702,0.0001918,2]
[346303627,1734881447155,-391.71796702,0.0001918,2]
[346303628,1734881447164,-391.71796702,0.0001918,2]
[346303629,1734881447173,-391.71796702,0.0001918,2]
[346303630,1734881447182,-391.71796702,0.0001918,2]
[346303631,1734881447192,-391.71796702,0.0001918,2]
[346303632,1734881447201,-391.71796702,0.0001918,2]
[346303633,1734881447211,-391.71796702,0.0001918,2]
[346303634,1734881447220,-391.71796702,0.0001918,2]
[346303635,1734881447229,-391.71796702,0.0001918,2]
[346303636,1734881447239,-391.71796702,0.0001918,2]
[346303637,1734881447248,-391.71796702,0.0001918,2]
[346303638,1734881447257,-391.71,0.0001918,2]
[346303639,1734881447267,-587.57695053,0.0001918,2]
[346303640,1734881447276,-587.57695053,0.0001918,2]
[346303641,1734881447286,-587.57695053,0.0001918,2]
[346303642,1734881447295,-587.57695053,0.0001918,2]
[346303643,1734881447305,-587.57695053,0.0001918,2]
[346303644,1734881447314,-587.57695053,0.0001918,2]
[346303645,1734881447324,-587.57695053,0.0001918,2]
[346303646,1734881447333,-587.57695053,0.0001918,2]
[346303647,1734881447343,-587.57695053,0.0001918,2]
[346303648,1734881447352,-587.57695053,0.0001918,2]
[346303649,1734881447362,-587.57695053,0.0001918,2]
[346303650,1734881447372,-587.57695053,0.0001918,2]
[346303651,1734881447381,-587.57695053,0.0001918,2]
[346303652,1734881447391,-587.57695053,0.0001918,2]
[346303653,1734881447400,-587.57695053,0.0001918,2]
[346303654,1734881447409,-587.57695053,0.0001918,2]
[346303655,1734881447419,-587.57695053,0.0001918,2]
[346303656,1734881447428,-587.57695053,0.0001918,2]
[346303657,1734881447438,-587.57695053,0.0001918,2]
[346303658,1734881447447,-587.57,0.0001918,2]
[346303659,1734881447458,-500.0,0.00019205,2]
[346303660,1734881447468,-208.0,0.0001925,2]
[346303661,1734881447478,-210.0,0.0001925,2]
[346303662,1734881447487,-203.0,0.0001925,2]
[346303663,1734881447496,-1000.0,0.00019268,2]
[346303664,1734881447506,-157.43900495,0.00019288,2]
[346303665,1734881447515,-158.20479792,0.00019288,2]
[346303666,1734881447525,-308.69290276,0.00019299,2]
[346303667,1734881447534,-666.0,0.00019299,2]
[346303668,1734881447544,-146530.0,0.000193,2]
[346303669,1734881447552,-1600.8,0.00019316,2]
[346303670,1734881447563,-150.0,0.00019333,4]
[346303671,1734881447573,-826.16,0.00019339,2]
[346303672,1734881447583,-16765.48,0.00019339,2]
[346303673,1734881447592,-382.7572,0.00019352,2]
[346303674,1734881447602,-423.2763481,0.00019386,2]
[346303675,1734881447612,-399.59820415,0.00019399,2]
[346303676,1734881447621,-231610.95833662,0.000194,2]
[346303677,1734881447631,-1000.0,0.000194,2]
[346303678,1734881447640,-11046.38693033,0.00019444,2]
[346303679,1734881447649,-2632.58141026,0.00019445,2]
[346303680,1734881447659,-8855.04656178,0.00019446,2]
[346303681,1734881447669,-11046.38693033,0.00019448,2]
[346303682,1734881447678,-2632.58141026,0.00019449,2]
[346303683,1734881447689,-8855.04656178,0.00019449,2]
[346303684,1734881447699,-11046.38693033,0.00019449,2]
[346303685,1734881447709,-1920.31,0.0001945,2]
[346303686,1734881447718,-49999.99999901,0.0001945,5]
[346303687,1734881447728,-3016.5968238,0.0001945,2]
[346303688,1734881447738,-5194.41337268,0.0001945,2]
[346303689,1734881447748,-3016.5968238,0.0001945,2]
[346303690,1734881447758,-1585.3,0.00019451,2]
[346303691,1734881447770,-1917.94,0.00019451,2]
[346303692,1734881447784,-812.1,0.00019451,2]
[346303693,1734881447794,-11737.39,0.00019451,2]
[346303694,1734881447804,-1135.46,0.00019451,2]
[346303695,1734881447815,-500.0,0.00019451,2]
[346303696,1734881447824,-1000.0,0.00019451,2]
[346303697,1734881447834,-712.18,0.00019451,2]
[346303698,1734881447844,-500.0,0.00019451,2]
[346303699,1734881447854,-1317.01,0.00019451,2]
[346303700,1734881447865,-3059.92,0.00019451,2]
[346303701,1734881447875,-1920.31,0.00019451,2]
[346303702,1734881447884,-5194.41337268,0.00019451,2]
[346303703,1734881447893,-500.0,0.00019452,2]
[346303704,1734881447903,-500.0,0.00019452,2]
[346303705,1734881447912,-500.0,0.00019452,2]
[346303706,1734881447922,-500.8462518,0.00019452,2]
[346303707,1734881447931,-500.0,0.00019452,2]
[346303708,1734881447942,-500.0,0.00019452,2]
[346303709,1734881447951,-500.0,0.00019452,2]
[346303710,1734881447960,-500.0,0.00019452,2]
[346303711,1734881447969,-500.0,0.00019452,2]
[346303712,1734881447979,-500.0,0.00019452,2]
[346303713,1734881447988,-498.51993393,0.00019452,2]
[346303714,1734881447998,-540.26,0.00019452,2]
[346303715,1734881448007,-500.0,0.00019452,2]
[346303716,1734881448017,-500.0,0.00019452,2]
[346303717,1734881448026,-500.0,0.00019452,2]
[346303718,1734881448036,-500.0,0.00019452,2]
[346303719,1734881448045,-500.0,0.00019452,2]
[346303720,1734881448055,-500.0,0.00019452,2]
[346303721,1734881448064,-500.0,0.00019452,2]
[346303722,1734881448073,-500.0,0.00019452,2]
[346303723,1734881448083,-500.0,0.00019452,2]
[346303724,1734881448092,-500.0,0.00019452,2]
[346303725,1734881448101,-500.0,0.00019452,2]
[346303726,1734881448111,-500.0,0.00019452,2]
[346303727,1734881448120,-500.0,0.00019452,2]
[346303728,1734881448130,-639.48,0.00019452,2]
[346303729,1734881448139,-500.0,0.00019452,2]
[346303730,1734881448148,-500.0,0.00019452,2]
[346303731,1734881448157,-500.0,0.00019452,2]
[346303732,1734881448167,-500.0,0.00019452,2]
[346303733,1734881448176,-500.0,0.00019452,2]
[346303734,1734881448185,-500.0,0.00019452,2]
[346303735,1734881448197,-535.03,0.00019452,2]
[346303736,1734881448206,-500.0,0.00019452,2]
[346303737,1734881448215,-500.0,0.00019452,2]
[346303738,1734881448225,-500.0,0.00019452,2]
[346303739,1734881448234,-573.89,0.00019452,2]
[346303740,1734881448243,-500.0,0.00019452,2]
[346303741,1734881448252,-500.0,0.00019452,2]
[346303742,1734881448261,-513.59,0.00019452,2]
[346303743,1734881448270,-500.0,0.00019452,2]
[346303744,1734881448279,-500.0,0.00019452,2]
[346303745,1734881448288,-500.0,0.00019452,2]
[346303746,1734881448298,-500.0,0.00019452,2]
[346303747,1734881448308,-510.03402282,0.00019452,2]
[346303748,1734881448317,-468.61710504,0.00019452,2]
[346303749,1734881448326,-565.48,0.00019452,2]
[346303750,1734881448336,-500.0,0.00019452,2]
[346303751,1734881448346,-804.27,0.00019452,2]
[346303752,1734881448355,-640.72,0.00019452,2]
[346303753,1734881448365,-684.212988,0.00019452,2]
[346303754,1734881448374,-500.0,0.00019452,2]
[346303755,1734881448383,-3303.604918,0.00019452,2]
[346303756,1734881448392,-500.0,0.00019452,2]
[346303757,1734881448403,-500.0,0.00019452,2]
[346303758,1734881448412,-500.0,0.00019452,2]
[346303759,1734881448422,-500.0,0.00019452,2]
[346303760,1734881448432,-500.0,0.00019452,2]
[346303761,1734881448442,-626.37652024,0.00019452,2]
[346303762,1734881448451,-500.0,0.00019452,2]
[346303763,1734881448462,-500.0,0.00019452,2]
[346303764,1734881448471,-500.0,0.00019452,2]
[346303765,1734881448480,-500.0,0.00019452,2]
[346303766,1734881448490,-500.0,0.00019452,2]
[346303767,1734881448499,-500.0,0.00019452,2]
[346303768,1734881448509,-1179.12,0.00019452,2]
[346303769,1734881448519,-579.64,0.00019452,2]
[346303770,1734881448528,-819.04,0.00019452,2]
[346303771,1734881448538,-870.34,0.00019452,2]
[346303772,1734881448547,-500.0,0.00019452,2]
[346303773,1734881448556,-500.0,0.00019452,2]
[346303774,1734881448565,-500.0,0.00019452,2]
[346303775,1734881448575,-556.13,0.00019452,2]
[346303776,1734881448585,-500.0,0.00019452,2]
[346303777,1734881448595,-503.79,0.00019452,2]
[346303778,1734881448604,-500.0,0.00019452,2]
[346303779,1734881448613,-500.0,0.00019452,2]
[346303780,1734881448623,-500.0,0.00019452,2]
[346303781,1734881448632,-500.0,0.00019452,2]
[346303782,1734881448642,-500.0,0.00019452,2]
[346303783,1734881448652,-383.70182401,0.00019452,2]
[346303784,1734881448661,-500.0,0.00019452,2]
[346303785,1734881448670,-500.0,0.00019452,2]
[346303786,1734881448680,-500.0,0.00019452,2]
[346303787,1734881448690,-500.0,0.00019452,2]
[346303788,1734881448700,-500.0,0.00019452,2]
[346303789,1734881448709,-500.0,0.00019452,2]
[346303790,1734881448719,-500.0,0.00019452,2]
[346303791,1734881448728,-500.0,0.00019452,2]
[346303792,1734881448738,-500.0,0.00019452,2]
[346303793,1734881448747,-857.69,0.00019452,2]
[346303794,1734881448756,-507.55672115,0.00019452,2]
[346303795,1734881448767,-547.58,0.00019452,2]
[346303796,1734881448779,-500.0,0.00019452,2]
[346303797,1734881448788,-500.0,0.00019452,2]
[346303798,1734881448797,-500.0,0.00019452,2]
[346303799,1734881448807,-500.0,0.00019452,2]
[346303800,1734881448816,-764.76375495,0.00019452,2]
[346303801,1734881448825,-500.0,0.00019452,2]
[346303802,1734881448834,-540.18,0.00019452,2]
[346303803,1734881448844,-500.0,0.00019452,2]
[346303804,1734881448853,-500.0,0.00019452,2]
[346303805,1734881448863,-500.0,0.00019452,2]
[346303806,1734881448872,-502.4,0.00019452,2]
[346303807,1734881448881,-500.0,0.00019452,2]
[346303808,1734881448890,-500.0,0.00019452,2]
[346303809,1734881448899,-500.0,0.00019452,2]
[346303810,1734881448908,-500.0,0.00019452,2]
[346303811,1734881448917,-500.0,0.00019452,2]
[346303812,1734881448926,-500.0,0.00019452,2]
[346303813,1734881448935,-500.0,0.00019452,2]
[346303814,1734881448947,-500.0,0.00019452,2]
[346303815,1734881448956,-500.0,0.00019452,2]
[346303816,1734881448966,-876.12,0.00019452,2]
[346303817,1734881448975,-500.0,0.00019452,2]
[346303818,1734881448984,-673.59,0.00019452,2]
[346303819,1734881448993,-500.0,0.00019452,2]
[346303820,1734881449002,-500.0,0.00019452,2]
[346303821,1734881449011,-5159.6,0.00019452,2]
[346303822,1734881449021,-500.0,0.00019452,2]